fUSD/lending_fUSD_20240117
["ID","MTS","AMOUNT","RATE_DAILY","PERIOD"]
[311909015,1705492257652,-1000.0,0.00032877,30]
[311909016,1705492257660,-1000.0,0.00032877,30]
[311909017,1705492257669,-1000.0,0.00032877,30]
[311909018,1705492257679,-1000.0,0.00032877,30]
[311909019,1705492257689,-1000.0,0.00032877,30]
[311909020,1705492257698,-1000.0,0.00032877,30]
[311909021,1705492257707,-1000.0,0.00032877,30]
[311909022,1705492257716,-1000.0,0.00032877,30]
[311909023,1705492257728,-1000.0,0.00032877,30]
[311909024,1705492257737,-1000.0,0.00032877,30]
[311909025,1705492257746,-1000.0,0.00032877,30]
[311909026,1705492257755,-1000.0,0.00032877,30]
[311909027,1705492257765,-1000.0,0.00032877,30]
[311909028,1705492257774,-1000.0,0.00032877,30]
[311909029,1705492257783,-1000.0,0.00032877,30]
[311909030,1705492257793,-1000.0,0.00032877,30]
[311909031,1705492257802,-1000.0,0.00032877,30]
[311909032,1705492257811,-1000.0,0.00032877,30]
[311909033,1705492257820,-1000.0,0.00032877,30]
[311909034,1705492257831,-1000.0,0.00032877,30]
[311909035,1705492257841,-1000.0,0.00032877,30]
[311909036,1705492257850,-1000.0,0.00032877,30]
[311909037,1705492257859,-1000.0,0.00032877,30]
[311909038,1705492257870,-1000.0,0.00032877,30]
[311909039,1705492257878,-1000.0,0.00032877,30]
[311909040,1705492257887,-1000.0,0.00032877,30]
[311909041,1705492257896,-1000.0,0.00032877,30]
[311909042,1705492257906,-1000.0,0.00032877,30]
[311909043,1705492257915,-1000.0,0.00032877,30]
[311909044,1705492257925,-1000.0,0.00032877,30]
[311909045,1705492257937,-1000.0,0.00032877,30]
[311909046,1705492257947,-1000.0,0.00032877,30]
[311909047,1705492257957,-1000.0,0.00032877,30]
[311909048,1705492257972,-1000.0,0.00032877,30]
[311909049,1705492257980,-1000.0,0.00032877,30]
[311909050,1705492257989,-1000.0,0.00032877,30]
[311909051,1705492257998,-1000.0,0.00032877,30]
[311909052,1705492258008,-1000.0,0.00032877,30]
[311909053,1705492258018,-1000.0,0.00032877,30]
[311909054,1705492258027,-1000.0,0.00032877,30]
[311909055,1705492258036,-1000.0,0.00032877,30]
[311909056,1705492258046,-1000.0,0.00032877,30]
[311909057,1705492258054,-1000.0,0.00032877,30]
[311909058,1705492258063,-1000.0,0.00032877,30]
[311909059,1705492258073,-1000.0,0.00032877,30]
[311909060,1705492258086,-1000.0,0.00032877,30]
[311909061,1705492258095,-1000.0,0.00032877,30]
[311909062,1705492258105,-1000.0,0.00032877,30]
[311909063,1705492258117,-1000.0,0.00032877,30]
[311909064,1705492258126,-1000.0,0.00032877,30]
[311909065,1705492258135,-1000.0,0.00032877,30]
[311909066,1705492258146,-1000.0,0.00032877,30]
[311909067,1705492258155,-1000.0,0.00032877,30]
[311909068,1705492258164,-1000.0,0.00032877,30]
[311909069,1705492258174,-1000.0,0.00032877,30]
[311909070,1705492258183,-1000.0,0.00032877,30]
[311909071,1705492258191,-1000.0,0.00032877,30]
[311909072,1705492258200,-1000.0,0.00032877,30]
[311909073,1705492258209,-1000.0,0.00032877,30]
[311909074,1705492258218,-316.0,0.00032877,30]
[311909075,1705492258228,-1000.0,0.00032877,30]
[311909076,1705492258237,-1000.0,0.00032877,30]
[311909077,1705492258246,-150.0,0.00032877,2]
[311909078,1705492258256,-1680.47,0.00032877,15]
[311909079,1705492258265,-150.0,0.00032877,30]
[311909080,1705492258274,-165.35783754,0.00032877,30]
[311909081,1705492258283,-155.0,0.00032877,2]
[311909082,1705492258293,-152.0,0.00032884,4]
[311909083,1705492258302,-2000.0,0.000329,2]
[311909084,1705492258311,-263.48354742,0.000329,2]
[311909085,1705492258321,-3000.0,0.000329,2]
[311909086,1705492258330,-500.0,0.000329,2]
[311909087,1705492258339,-330.38875149,0.000329,7]
[311909088,1705492258348,-44669.61124851,0.000329,7]
[311909089,1705492258356,-200.0,0.000329,2]
[311909090,1705492258366,-1000.0,0.000329,2]
[311909091,1705492258376,-890.0,0.000329,2]
[311909092,1705492258386,-530.71597084,0.00032969,7]
[311909093,1705492258395,-150.0,0.00032976,30]
[311909094,1705492258404,-150.0,0.00032976,30]
[311909095,1705492258414,-150.0,0.00032976,30]
[311909096,1705492258422,-150.0,0.00032976,30]
[311909097,1705492258431,-150.0,0.00032976,30]
[311909098,1705492258440,-150.0,0.00032976,30]
[311909099,1705492258450,-150.0,0.00032976,30]
[311909100,1705492258459,-150.0,0.00032976,30]
[311909101,1705492258468,-150.0,0.00032976,30]
[311909102,1705492258477,-150.0,0.00032976,30]
[311909103,1705492258486,-150.0,0.00032976,30]
[311909104,1705492258495,-150.0,0.00032976,30]
[311909105,1705492258504,-150.0,0.00032976,30]
[311909106,1705492258513,-150.0,0.00032976,30]
[311909107,1705492258523,-1131.3065446,0.00032977,2]
[311909108,1705492258533,-1131.3065446,0.00032977,2]
[311909109,1705492258542,-3699.0930648,0.00032977,2]
[311909110,1705492258550,-3699.0930648,0.00032977,2]
[311909111,1705492258560,-22487.8166466,0.00032977,2]
[311909112,1705492258569,-16925.2672537,0.00032977,2]
[311909113,1705492258578,-14685.8782337,0.00032977,2]
[311909114,1705492258586,-11053.2035131,0.00032977,2]
[311909115,1705492258595,-553.0894115,0.00032977,2]
[311909116,1705492258605,-553.0894115,0.00032977,2]
[311909117,1705492258614,-18581.1134165,0.00032977,2]
[311909118,1705492258625,-13984.9197184,0.00032977,2]
[311909119,1705492258634,-200.0,0.00032987,2]
[311909120,1705492258642,-200.0,0.00032987,3]
[311909121,1705492258651,-200.0,0.00032987,4]
[311909122,1705492258660,-150.0,0.00032989,2]
[311909123,1705492258669,-1000.0,0.00032994,7]
[311909124,1705492258678,-1000.0,0.00032994,7]
[311909125,1705492258687,-1000.0,0.00032994,7]
[311909126,1705492258696,-1000.0,0.00032994,7]
[311909127,1705492258706,-1000.0,0.00032994,7]
[311909128,1705492258715,-150.0,0.00032999,30]
[311909129,1705492258724,-150.0,0.00032999,30]
[311909130,1705492258733,-150.0,0.00032999,30]
[311909131,1705492258742,-150.0,0.00032999,30]
[311909132,1705492258751,-150.0,0.00032999,30]
[311909133,1705492258760,-150.0,0.00032999,30]
[311909134,1705492258770,-150.0,0.00032999,30]
[311909135,1705492258779,-150.0,0.00032999,30]
[311909136,1705492258789,-150.0,0.00032999,30]
[311909137,1705492258799,-150.0,0.00032999,30]
[311909138,1705492258808,-150.0,0.00032999,30]
[311909139,1705492258817,-150.0,0.00032999,30]
[311909140,1705492258825,-150.0,0.00032999,30]
[311909141,1705492258834,-150.0,0.00032999,30]
[311909142,1705492258843,-150.0,0.00032999,30]
[311909143,1705492258852,-150.0,0.00032999,30]
[311909144,1705492258862,-150.0,0.00032999,30]
[311909145,1705492258873,-150.0,0.00032999,30]
[311909146,1705492258884,-150.0,0.00032999,30]
[311909147,1705492258893,-150.0,0.00032999,30]
[311909148,1705492258901,-150.0,0.00032999,30]
[311909149,1705492258911,-150.0,0.00032999,30]
[311909150,1705492258919,-150.0,0.00032999,30]
[311909151,1705492258928,-150.0,0.00032999,30]
[311909152,1705492258937,-150.0,0.00032999,30]
[311909153,1705492258947,-150.0,0.00032999,30]
[311909154,1705492258956,-150.0,0.00032999,30]
[311909155,1705492258966,-150.0,0.00032999,30]
[311909156,1705492258975,-150.0,0.00032999,30]
[311909157,1705492258985,-150.0,0.00032999,30]
[311909158,1705492258994,-150.0,0.00032999,30]
[311909159,1705492259004,-150.0,0.00032999,30]
[311909160,1705492259013,-150.0,0.00032999,30]
[311909161,1705492259022,-150.0,0.00032999,30]
[311909162,1705492259032,-150.0,0.00032999,30]
[311909163,1705492259041,-150.0,0.00032999,30]
[311909164,1705492259051,-150.0,0.00032999,30]
[311909165,1705492259061,-150.0,0.00032999,30]
[311909166,1705492259076,-150.0,0.00032999,30]
[311909167,1705492259085,-150.0,0.00032999,30]
[311909168,1705492259094,-150.0,0.00032999,30]
[311909169,1705492259103,-150.0,0.00032999,30]
[311909170,1705492259113,-150.0,0.00032999,30]
[311909171,1705492259125,-150.0,0.00032999,30]
[311909172,1705492259133,-150.0,0.00032999,30]
[311909173,1705492259143,-150.0,0.00032999,30]
[311909174,1705492259153,-150.0,0.00032999,30]
[311909175,1705492259163,-150.0,0.00032999,30]
[311909176,1705492259173,-150.0,0.00032999,30]
[311909177,1705492259182,-150.0,0.00032999,30]
[311909178,1705492259191,-150.0,0.00032999,30]
[311909179,1705492259200,-300.0,0.00032999,2]
[311909180,1705492259209,-300.0,0.00032999,2]
[311909181,1705492259218,-500.0,0.00032999,7]
[311909182,1705492259227,-500.0,0.00032999,7]
[311909183,1705492259236,-500.0,0.00032999,7]
[311909184,1705492259246,-500.0,0.00032999,7]
[311909185,1705492259254,-500.0,0.00032999,7]
[311909186,1705492259263,-500.0,0.00032999,7]
[311909187,1705492259273,-500.0,0.00032999,7]
[311909188,1705492259282,-500.0,0.00032999,7]
[311909189,1705492259292,-500.0,0.00032999,7]
[311909190,1705492259301,-448.67728612,0.00032999,7]
[311909191,1705492259311,-100000.0,0.00033,3]
[311909192,1705492259320,-264.34424628,0.00033,4]
[311909193,1705492259330,-2065.6664731,0.00033,4]
[311909194,1705492259339,-300.0,0.00033,2]
[311909195,1705492259348,-20105.0,0.00033,4]
[311909196,1705492259358,-61887.89949777,0.00033,2]
[311909197,1705492259367,-500000.0,0.00033,5]
[311909198,1705492259377,-500000.0,0.00033,3]
[311909199,1705492259386,-500000.0,0.00033,5]
[311909200,1705492259395,-300000.0,0.00033,4]
[311909201,1705492259405,-1000.0,0.00033,5]
[311909202,1705492259414,-1014.0,0.00033,3]
[311909203,1705492259422,-1000.0,0.00033,3]
[311909204,1705492259431,-1070.0,0.00033,3]
[311909205,1705492259440,-500.0,0.00033,2]
[311909206,1705492259449,-399.0,0.00033,2]
[311909207,1705492259458,-1001.91285455,0.00033,2]
[311909208,1705492259467,-800.0,0.00033,7]
[311909209,1705492259477,-2219.27556503,0.00033,3]
[311909210,1705492259486,-600.0,0.00033,34]
[311909211,1705492259495,-2000.0,0.00033,2]
[311909212,1705492259504,-150.0,0.00033,6]
[311909213,1705492259513,-473.2219944,0.00033,2]
[311909214,1705492259524,-500.0,0.00033,3]
[311909215,1705492259533,-1000.0,0.00033,2]
[311909216,1705492259542,-15817.83331162,0.00033,15]
[311909217,1705492259551,-300.0,0.00033,6]
[311909218,1705492259561,-932.80769321,0.00033,15]
[311909219,1705492259570,-2699.05913866,0.00033,15]
[311909220,1705492259579,-2904.62315368,0.00033,15]
[311909221,1705492259588,-183.0,0.00033,2]
[311909222,1705492259597,-246.93,0.00033,2]
[311909223,1705492259606,-530.71597084,0.00033083,7]
[311909224,1705492259616,-847.5498371,0.0003315,5]
[311909225,1705492259625,-1225.99,0.0003315,7]
[311909226,1705492259634,-183.0,0.00033151,2]
[311909227,1705492259643,-151.0,0.00033184,2]
[311909228,1705492259652,-530.71597084,0.00033193,7]
[311909229,1705492259662,-1688.0,0.000332,2]
[311909230,1705492259671,-362.0,0.000332,2]
[311909231,1705492259680,-500.25631957,0.00033215,2]
[311909232,1705492259690,-530.71597084,0.00033234,7]
[311909233,1705492259698,-530.71597084,0.00033254,7]
[311909234,1705492259707,-1872.28251996,0.000333,5]
[311909235,1705492259716,-221.0,0.000333,22]
[311909236,1705492259726,-300.0,0.00033332,2]
[311909237,1705492259735,-151.21239447,0.00033412,7]
[311909238,1705492259744,-211.0,0.0003342,2]
[311909239,1705492259753,-236.0,0.0003342,2]
[311909240,1705492259763,-216.48,0.00033423,2]
[311909241,1705492259772,-1225.99,0.00033424,7]
[311909242,1705492259781,-203.0,0.0003343,2]
[311909243,1705492259791,-204.0,0.0003343,2]
[311909244,1705492259800,-207.0,0.0003343,2]
[311909245,1705492259808,-1440.0,0.00033463,7]
[311909246,1705492259818,-530.71597084,0.00033493,7]
[311909247,1705492259827,-3061.5,0.000335,2]
[311909248,1705492259837,-3061.5,0.000335,2]
[311909249,1705492259846,-3061.5,0.000335,2]
[311909250,1705492259856,-3061.5,0.000335,2]
[311909251,1705492259866,-3061.5,0.000335,2]
[311909252,1705492259875,-3061.5,0.000335,2]
[311909253,1705492259885,-3061.5,0.000335,2]
[311909254,1705492259893,-3061.5,0.000335,2]
[311909255,1705492259903,-3061.5,0.000335,2]
[311909256,1705492259912,-3061.5,0.000335,2]
[311909257,1705492259922,-3061.5,0.000335,2]
[311909258,1705492259932,-3061.5,0.000335,2]
[311909259,1705492259941,-3061.5,0.000335,2]
[311909260,1705492259951,-3061.5,0.000335,2]
[311909261,1705492259960,-3061.5,0.000335,2]
[311909262,1705492259970,-3061.5,0.000335,2]
[311909263,1705492259979,-3061.5,0.000335,2]
[311909264,1705492259989,-3061.5,0.000335,2]
[311909265,1705492259999,-3061.5,0.000335,2]
[311909266,1705492260008,-3061.5,0.000335,2]
[311909267,1705492260018,-151.17074475,0.00033536,2]
[311909268,1705492260027,-1688.0,0.00033542,2]
[311909269,1705492260036,-362.0,0.00033542,2]
[311909270,1705492260046,-209.0,0.000336,2]
[311909271,1705492260056,-500.0,0.00033647,14]
[311909272,1705492260065,-190.68196431,0.00033669,7]
[311909273,1705492260076,-1225.99,0.00033698,7]
[311909274,1705492260087,-161.14339068,0.00033709,7]
[311909275,1705492260096,-6682.04473721,0.00033737,5]
[311909276,1705492260105,-150.0,0.00033742,2]
[311909277,1705492260115,-153.84,0.0003379,2]
[311909278,1705492260127,-221.0,0.000338,22]
[311909279,1705492260136,-150.66287439,0.00033835,2]
[311909280,1705492260145,-1000.0,0.00033836,7]
[311909281,1705492260156,-1000.0,0.00033836,7]
[311909282,1705492260165,-1000.0,0.00033836,7]
[311909283,1705492260174,-1000.0,0.00033836,7]
[311909284,1705492260183,-1000.0,0.00033836,7]
[311909285,1705492260192,-1000.0,0.00033836,7]
[311909286,1705492260201,-1688.0,0.00033885,2]
[311909287,1705492260210,-362.0,0.00033885,2]
[311909288,1705492260219,-1340.52006137,0.000339,7]
[311909289,1705492260229,-14459.26013883,0.000339,2]
[311909290,1705492260238,-1563.52508396,0.000339,2]
[311909291,1705492260248,-927.45525257,0.000339,2]
[311909292,1705492260257,-2001.06,0.00033905,2]
[311909293,1705492260266,-553.0894115,0.00033954,2]
[311909294,1705492260276,-9388.7260203,0.00033954,2]
[311909295,1705492260286,-216.48,0.00033971,2]
[311909296,1705492260295,-1225.99,0.00033972,7]
[311909297,1705492260305,-11362.7178608,0.00033976,2]
[311909298,1705492260315,-7420.5287925,0.00033976,2]
[311909299,1705492260324,-1131.3065446,0.00033977,2]
[311909300,1705492260333,-1131.3065446,0.00033977,2]
[311909301,1705492260344,-3699.0930648,0.00033977,2]
[311909302,1705492260353,-3699.0930648,0.00033977,2]
[311909303,1705492260362,-5800.1684678,0.00033977,2]
[311909304,1705492260374,-237.6190749,0.00033977,2]
[311909305,1705492260384,-3787.8540719,0.00033977,2]
[311909306,1705492260393,-155.1793513,0.00033977,2]
[311909307,1705492260402,-553.0894115,0.00033977,2]
[311909308,1705492260411,-553.0894115,0.00033977,2]
[311909309,1705492260421,-4792.5323222,0.00033977,2]
[311909310,1705492260430,-196.3386242,0.00033977,2]
[311909311,1705492260439,-246.93,0.00033979,2]
[311909312,1705492260448,-200.0,0.00033987,3]
[311909313,1705492260457,-200.0,0.00033987,6]
[311909314,1705492260466,-150.0,0.00033989,2]
[311909315,1705492260476,-100000.0,0.00034,4]
[311909316,1705492260485,-155.0,0.00034,4]
[311909317,1705492260495,-231.75157709,0.00034,4]
[311909318,1705492260504,-1000.0,0.00034,4]
[311909319,1705492260513,-155.0,0.00034,2]
[311909320,1705492260523,-803.17303841,0.00034,4]
[311909321,1705492260532,-1004.0,0.00034,2]
[311909322,1705492260541,-500000.0,0.00034,4]
[311909323,1705492260550,-1000.0,0.00034,4]
[311909324,1705492260559,-200000.0,0.00034,4]
[311909325,1705492260568,-115637.10174712,0.00034,2]
[311909326,1705492260577,-500.0,0.00034,2]
[311909327,1705492260586,-555.50705549,0.00034,10]
[311909328,1705492260596,-1019.58,0.00034,14]
[311909329,1705492260605,-30175.0527317,0.00034,5]
[311909330,1705492260614,-271795.82877997,0.00034,10]
[311909331,1705492260888,-82352.68952787,0.00034,10]
[311909332,1705492260901,-38369.85978332,0.00034,10]
[311909333,1705492260914,-10316.7148963,0.00034,10]
[311909334,1705492261632,-222.26930322,0.00018363,2]
[311909335,1705492261642,-867.04082941,0.00018363,2]
[311909336,1705492261652,-10.1934237,0.00018364,2]
[311909337,1705492261663,-1364.7665763,0.00018364,2]
[311909338,1705492261673,-3200.0,0.0002,2]
[311909339,1705492261683,-500.0,0.00021917,2]
[311909340,1705492261692,-500.0,0.00022191,2]
[311909341,1705492261702,-500.0,0.00022465,2]
[311909342,1705492261711,-90.61802568,0.00022739,2]
[311909343,1705492261727,-409.38197432,0.00022739,2]
[311909344,1705492261736,-156.0,0.00022766,2]
[311909345,1705492261746,-500.0,0.00023013,2]
[311909346,1705492261756,-18.7710372,0.00023013,2]
[311909347,1705492261772,-481.2289628,0.00023013,2]
[311909348,1705492261781,-500.0,0.00023287,2]
[311909349,1705492261790,-500.0,0.00023561,2]
[311909350,1705492261800,-500.0,0.00023835,2]
[311909351,1705492261809,-210.336,0.00023873,2]
[311909352,1705492261819,-500.0,0.00024109,2]
[311909353,1705492261829,-315.52890872,0.00024383,2]
[311909354,1705492261839,-559.31,0.00027123,2]
[311909355,1705492261853,-559.31,0.00027397,2]
[311909356,1705492261862,-2106.45,0.00027397,10]
[311909357,1705492261873,-313.56085655,0.00027671,2]
[311909358,1705492261943,-245.74914345,0.00027671,2]
[311909359,1705492261953,-419.32859875,0.00027878,2]
[311909360,1705492261963,-559.31,0.00027945,2]
[311909361,1705492261973,-559.46321349,0.00028219,2]
[311909362,1705492261983,-110.04077018,0.00029867,7]
[311909363,1705492262010,-1174.57621344,0.00018363,2]
[311909364,1705492262023,-3672.81731977,0.00018363,2]
[311909365,1705492262033,-3029.56990758,0.00018363,2]
[311909366,1705492262042,-6551.12683792,0.00029867,7]
[311909367,1705492262054,-13854.35996826,0.00029867,7]
[311909368,1705492262063,-419.32859875,0.000299,2]
[311909369,1705492262074,-452.3229001,0.00031999,2]
[311909370,1705492262086,-500.0,0.00031999,2]
[311909371,1705492262096,-500.0,0.00031999,2]
[311909372,1705492262105,-500.0,0.00031999,2]
[311909373,1705492262114,-500.0,0.00031999,2]
[311909374,1705492262127,-500.0,0.00031999,2]
[311909375,1705492262137,-500.0,0.00031999,2]
[311909376,1705492262146,-500.0,0.00031999,2]
[311909377,1705492262156,-500.0,0.00031999,2]
[311909378,1705492262166,-500.0,0.00031999,2]
[311909379,1705492262176,-500.0,0.00031999,2]
[311909380,1705492262186,-500.0,0.00031999,2]
[311909381,1705492262195,-179.10997524,0.00031999,2]
[311909382,1705492262219,-500.0,0.00021917,2]
[311909383,1705492262229,-500.0,0.00022191,2]
[311909384,1705492262239,-320.89002476,0.00031999,2]
[311909385,1705492262248,-205.2463752,0.00031999,2]
[311909386,1705492262258,-500.0,0.00031999,2]
[311909387,1705492262268,-500.0,0.00031999,2]
[311909388,1705492262278,-500.0,0.00031999,2]
[311909389,1705492262288,-500.0,0.00031999,2]
[311909390,1705492262298,-500.0,0.00031999,2]
[311909391,1705492262307,-500.0,0.00031999,2]
[311909392,1705492262317,-500.0,0.00031999,2]
[311909393,1705492262327,-500.0,0.00031999,2]
[311909394,1705492262336,-500.0,0.00031999,2]
[311909395,1705492262346,-500.0,0.00031999,2]
[311909396,1705492262356,-500.0,0.00031999,2]
[311909397,1705492262366,-500.0,0.00031999,2]
[311909398,1705492262376,-500.0,0.00031999,2]
[311909399,1705492262386,-500.0,0.00031999,2]
[311909400,1705492262396,-500.0,0.00031999,2]
[311909401,1705492262405,-500.0,0.00031999,2]
[311909402,1705492262415,-500.0,0.00031999,2]
[311909403,1705492262425,-500.0,0.00031999,2]
[311909404,1705492262434,-500.0,0.00031999,2]
[311909405,1705492262444,-500.0,0.00031999,2]
[311909406,1705492262454,-500.0,0.00031999,2]
[311909407,1705492262464,-500.0,0.00032876,7]
[311909408,1705492262473,-500.0,0.00032876,7]
[311909409,1705492262482,-500.0,0.00032876,7]
[311909410,1705492262492,-500.0,0.00032876,7]
[311909411,1705492262501,-403.9347814,0.00032876,7]
[311909412,1705492262510,-500.0,0.00032876,7]
[311909413,1705492262521,-500.0,0.00032876,7]
[311909414,1705492262538,-500.0,0.00032876,7]
[311909415,1705492262551,-500.0,0.00032876,7]
[311909416,1705492262560,-500.0,0.00032876,7]
[311909417,1705492262570,-500.0,0.00032876,7]
[311909418,1705492262579,-500.0,0.00032876,7]
[311909419,1705492262589,-500.0,0.00032876,7]
[311909420,1705492262598,-500.0,0.00032876,7]
[311909421,1705492262608,-500.0,0.00032876,7]
[311909422,1705492262618,-500.0,0.00032876,7]
[311909423,1705492262628,-500.0,0.00032876,7]
[311909424,1705492262638,-482.94110896,0.00032876,7]
[311909425,1705492262647,-500.0,0.00032876,7]
[311909426,1705492262657,-500.0,0.00032876,7]
[311909427,1705492262666,-500.0,0.00032876,7]
[311909428,1705492262676,-500.0,0.00032876,7]
[311909429,1705492262686,-500.0,0.00032876,7]
[311909430,1705492262695,-500.0,0.00032876,7]
[311909431,1705492262705,-500.0,0.00032876,7]
[311909432,1705492262715,-500.0,0.00032876,7]
[311909433,1705492262725,-500.0,0.00032876,7]
[311909434,1705492262734,-97164.90701254,0.00034,10]
[311909435,1705492262744,-44587.65289868,0.00034,2]
[311909436,1705492262754,-1733.71944523,0.00034,2]
[311909437,1705492262764,-3385.19941401,0.00034,2]
[311909438,1705492262779,-1921.87499979,0.00034,2]
[311909439,1705492262797,-500.0,0.00022465,2]
[311909440,1705492262807,-1874.6931627,0.00034,2]
[311909441,1705492262829,-545.26118799,0.00022739,2]
[311909442,1705492262841,-64.77881201,0.00022739,2]
[311909443,1705492262851,-2284.17608705,0.00034,2]
[311909444,1705492263250,-1092.74952644,0.00034,2]
[311909445,1705492263262,-282.36462342,0.00034,2]
[311909447,1705492280782,931.47399134,9e-05,2]
[311909448,1705492312509,3000.0,0.00015,10]
[311909449,1705492314026,186.03,0.00021641,10]
[311909450,1705492314218,186.03,0.00022702,10]
[311909451,1705492314603,186.03,0.00023762,10]
[311909453,1705492342377,567.40110901,0.00027,7]
[311909458,1705492462559,542.1531408,0.0003,120]
[311909464,1705493431921,-250.0,0.00018207,2]
[311909465,1705493431933,-308.73559187,0.00018207,2]
[311909466,1705493431943,-503.84036235,0.00018207,2]
[311909467,1705493431953,-867.04082941,0.00018208,2]
[311909468,1705493431963,-1852.23863545,0.00018209,2]
[311909469,1705493431972,-319.18,0.0001821,2]
[311909470,1705493431982,-22606.40749833,0.00018215,2]
[311909471,1705493431992,-5955.16897017,0.00018215,2]
[311909472,1705493432002,-4349.26887961,0.00018216,2]
[311909473,1705493432012,-162.22955918,0.0001822,2]
[311909474,1705493432022,-221.65352592,0.00018361,2]
[311909475,1705493432031,-449.68467136,0.00018361,2]
[311909476,1705493432041,-164.78321963,0.00018361,2]
[311909477,1705493432050,-1822.43371272,0.00018362,2]
[311909478,1705493432063,-851.20575742,0.00018362,2]
[311909479,1705493432074,-284.88106654,0.00018362,2]
[311909480,1705493432084,-162.22955914,0.0001939,2]
[311909481,1705493432093,-332.16161661,0.000198,2]
[311909482,1705493432105,-151.5265275,0.000198,2]
[311909483,1705493432115,-148.4734725,0.00020086,2]
[311909484,1705493432133,-351.5265275,0.00020086,2]
[311909485,1705493432142,-15508.65,0.00020101,2]
[311909486,1705493432152,-150.0,0.00020125,2]
[311909487,1705493432161,-2040.44923621,0.00020129,2]
[311909488,1705493432171,-250.0,0.00020135,2]
[311909489,1705493432180,-156.07,0.00020152,2]
[311909490,1705493432190,-200.0,0.00020168,2]
[311909491,1705493432199,-175.79,0.00020194,2]
[311909492,1705493432209,-4804.91,0.00020225,2]
[311909494,1705493432220,-4468.68698372,0.00020226,2]
[311909497,1705493432236,-1929.98680357,0.00020226,2]
[311909527,1705493437927,-5230.79166241,0.00020226,2]
[311909528,1705493437939,-1159.57559979,0.00020226,2]
[311909739,1705493440579,-165.17419233,0.00018108,2]
[311909741,1705493440589,-1013.52895051,0.00020226,2]
[311909744,1705493440598,-6355.17,0.00020237,2]
[311909746,1705493440610,-1716.72,0.00020237,2]
[311909748,1705493440619,-1999.92,0.00020237,2]
[311909750,1705493440629,-1000.0,0.00020254,2]
[311909752,1705493440638,-319.62,0.00020254,2]
[311909754,1705493440648,-499.99,0.00020254,2]
[311909756,1705493440657,-156.66,0.00020327,2]
[311909758,1705493440667,-156.66,0.00020402,2]
[311909760,1705493440677,-162.62,0.0002041,2]
[311909762,1705493440686,-319.18,0.00020474,2]
[311909764,1705493440696,-156.66,0.00020478,2]
[311909766,1705493440705,-152.57,0.00020488,2]
[311909768,1705493440715,-250.0,0.000205,2]
[311909770,1705493440724,-462.42,0.000205,2]
[311909772,1705493440734,-172.3,0.00020508,2]
[311909774,1705493440744,-2000.0,0.00020548,2]
[311909776,1705493440754,-156.66,0.00020554,2]
[311909778,1705493440764,-162.22955914,0.0002056,2]
[311909780,1705493440773,-156.66,0.00020629,2]
[311909782,1705493440783,-152.57,0.00020634,2]
[311909784,1705493440793,-156.66,0.00020705,2]
[311909786,1705493440803,-152.57,0.0002078,2]
[311909789,1705493440812,-156.66,0.0002078,2]
[311909791,1705493440822,-156.66,0.00020856,2]
[311909793,1705493440831,-152.57,0.00020927,2]
[311909795,1705493440840,-156.66,0.00020932,2]
[311909797,1705493440849,-156.66,0.00021007,2]